[Event "Vladimir Bato Kontic Memorial 2021"]
[Site "Niksic"]
[Date "2021.04.21"]
[Round "8.11"]
[White "Sukovic, Andrej"]
[Black "Potpara, Nikola"]
[Result "1-0"]
[ECO "B89"]
[WhiteElo "2283"]
[BlackElo "2370"]
[Annotator "ChessBase"]
[PlyCount "85"]
[EventDate "2021.04.17"]
[EventType "swiss"]
[EventCountry "MNE"]
[SourceTitle "playchess.com"]
[Source "ChessBase"]
[SourceQuality "1"]
[TimeControl "40/5400+30:1800+30"]

1. e4 c5 2. Nf3 d6 3. d4 cxd4 4. Nxd4 Nf6 5. Nc3 Nc6 6. Bc4 e6 7. Bb3 a6 8. Be3 Qc7 9. Qe2 Na5 10. g4 h6 11. f4 Nxb3 12. axb3 Nd7 13. h4 Rb8 14. O-O-O h5 15. gxh5 Nf6 16. h6 gxh6 17. Rhf1 Be7 18. e5 dxe5 19. fxe5 Qxe5 20. Bf4 Qxe2 21. Ndxe2 Nd7 22. Rxd7 Bxd7 23. Bxb8 Bxh4 24. Ne4 f5 25. Be5 Rg8 26. Nd6+ Ke7 27. Nxb7 Rg4 28. Nc5 Bb5 29. Kd1 Bf6 30. Bxf6+ Kxf6 31. c4 Bc6 32. Nxa6 h5 33. Nf4 h4 34. Nc7 Bg2 35. Nxg2 Rxg2 36. Rh1 Rxb2 37. Rxh4 Rxb3 38. Rh6+ Ke5 39. Kc2 Rb6 40. Nb5 Ke4 41. Kc3 f4 42. Nd4 f3 43. Rh4+ 1-0

[Event "Vladimir Bato Kontic Memorial 2021"]
[Site "Niksic"]
[Date "2021.04.22"]
[Round "9.6"]
[White "Nikac, Predrag"]
[Black "Injac, Teodora"]
[Result "1-0"]
[ECO "A03"]
[WhiteElo "2318"]
[BlackElo "2340"]
[Annotator "ChessBase"]
[PlyCount "87"]
[EventDate "2021.04.17"]
[EventType "swiss"]
[EventCountry "MNE"]
[SourceTitle "playchess.com"]
[Source "ChessBase"]
[SourceQuality "1"]
[TimeControl "40/5400+30:1800+30"]

1. f4 {[%emt 0:30:27]} d5 {[%emt 0:02:03]} 2. Nf3 {[%emt 0:07:08]} g6 {[%emt 0:00:52]} 3. g3 {[%emt 0:00:09]} Bg7 {[%emt 0:00:31]} 4. Bg2 {[%emt 0:00:10]} c6 {[%emt 0:01:09]} 5. a4 {[%emt 0:00:25]} a5 {[%emt 0:02:26]} 6. O-O {[%emt 0:00:12]} Qb6+ {[%emt 0:02:41]} 7. Kh1 {[%emt 0:01:30]} Nh6 {[%emt 0:17:25]} 8. Ra3 {[%emt 0:04:50]} Nf5 {[%emt 0:07:27]} 9. Rb3 {[%emt 0:01:02]} Qa7 {[%emt 0:08:25]} 10. Nc3 {[%emt 0:06:39]} h5 {[%emt 0:04:15]} 11. e4 {[%emt 0:01:11]} dxe4 {[%emt 0:00:11]} 12. Nxe4 {[%emt 0:00:08]} h4 {[%emt 0:05:49]} 13. Nxh4 {[%emt 0:04:11]} Be6 {[%emt 0:09:40]} 14. Re3 {[%emt 0:15:18]} Nxe3 {[%emt 0:03:56]} 15. dxe3 {[%emt 0:00:03]} Nd7 {[%emt 0:06:31]} 16. b3 {[%emt 0:08:41]} O-O-O {[%emt 0:02:47]} 17. Ng5 {[%emt 0:01:47]} Nc5 {[%emt 0:07:23]} 18. Qe2 {[%emt 0:02:14]} Bf6 {[%emt 0:01:22]} 19. Nhf3 {[%emt 0:01:01]} Rdf8 {[%emt 0:07:36]} 20. Nxe6 {[%emt 0:05:02]} Nxe6 {[%emt 0:00:07]} 21. e4 {[%emt 0:00:19]} Nd4 {[%emt 0:01:00]} 22. Qc4 {[%emt 0:01:40]} Nxf3 {[%emt 0:00:48]} 23. Bxf3 {[%emt 0:00:13]} Qd4 {[%emt 0:02:32]} 24. Qe2 {[%emt 0:00:22]} e6 {[%emt 0:00:24]} 25. Ba3 {[%emt 0:02:29]} Rd8 {[%emt 0:00:36]} 26. e5 {[%emt 0:00:36]} Bg7 {[%emt 0:00:04]} 27. Bd6 {[%emt 0:01:36]} Bf8 {[%emt 0:00:33]} 28. Rd1 {[%emt 0:00:17]} Qb6 {[%emt 0:00:26]} 29. c4 {[%emt 0:01:50]} Bxd6 {[%emt 0:00:26]} 30. exd6 {[%emt 0:00:11]} Qc5 {[%emt 0:04:21]} 31. Qe5 {[%emt 0:00:45]} Qxe5 {[%emt 0:00:06]} 32. fxe5 {[%emt 0:00:04]} Kd7 {[%emt 0:00:17]} 33. c5 {[%emt 0:00:15]} Rhf8 {[%emt 0:00:46]} 34. Rf1 {[%emt 0:01:14]} Rb8 {[%emt 0:00:04]} 35. Be4 {[%emt 0:00:29]} g5 {[%emt 0:00:43]} 36. Rf6 {[%emt 0:01:45]} b6 {[%emt 0:00:25]} 37. cxb6 {[%emt 0:00:22]} Rxb6 {[%emt 0:00:06]} 38. Bg6 {[%emt 0:00:14]} Rxb3 {[%emt 0:01:29]} 39. Bxf7 {[%emt 0:00:07]} Kd8 {[%emt 0:00:03]} 40. Bxe6 {[%emt 0:00:00]} Rxf6 {[%emt 0:00:00]} 41. exf6 {[%emt 0:18:43]} Rf3 {[%emt 0:22:05]} 42. f7 {[%emt 0:02:03]} c5 {[%emt 0:09:23]} 43. g4 {[%emt 0:00:13]} Rf6 {[%emt 0:00:02]} 44. h4 {[%emt 0:00:12]} 1-0